[Event "Live Chess"]
[Site "Chess.com"]
[Date "2024.06.02"]
[Round "-"]
[White "MagnersCarlsberg2870"]
[Black "wadsy27"]
[Result "0-1"]
[WhiteElo "1795"]
[BlackElo "2581"]
[TimeControl "300"]
[EndTime "3:45:04 PDT"]
[Termination "wadsy27 won by resignation"]

1. e4 {[%clk 0:04:55.7]} 1... c5 {[%clk 0:04:52.2]} 2. d3 {[%clk 0:04:53.7]}
2... Nc6 {[%clk 0:04:49.5]} 3. Nf3 {[%clk 0:04:52.4]} 3... e6 {[%clk 0:04:48.5]}
4. g3 {[%clk 0:04:51.5]} 4... Nf6 {[%clk 0:04:46.1]} 5. Bg2 {[%clk 0:04:50.8]}
5... d5 {[%clk 0:04:44.7]} 6. Nbd2 {[%clk 0:04:49.3]} 6... Be7 {[%clk
0:04:42.4]} 7. O-O {[%clk 0:04:46.7]} 7... b5 {[%clk 0:04:41.6]} 8. e5 {[%clk
0:04:40.4]} 8... Nd7 {[%clk 0:04:40.4]} 9. Re1 {[%clk 0:04:39.7]} 9... a5 {[%clk
0:04:37.6]} 10. Nf1 {[%clk 0:04:38.6]} 10... O-O {[%clk 0:04:35.7]} 11. Bf4
{[%clk 0:04:36.8]} 11... Bb7 {[%clk 0:04:25.5]} 12. h4 {[%clk 0:04:35.4]} 12...
Qb6 {[%clk 0:04:24.7]} 13. Ne3 {[%clk 0:04:29.1]} 13... Rfc8 {[%clk 0:04:21.2]}
14. Ng5 {[%clk 0:04:27.4]} 14... h6 {[%clk 0:04:19.2]} 15. Nxe6 {[%clk
0:04:15.7]} 15... fxe6 {[%clk 0:04:17.5]} 16. Bxh6 {[%clk 0:04:14.8]} 16...
Ncxe5 {[%clk 0:04:09.4]} 17. Bxg7 {[%clk 0:04:06]} 17... Kxg7 {[%clk 0:03:59.8]}
18. Ng4 {[%clk 0:04:04.9]} 18... Bf6 {[%clk 0:03:42.5]} 19. Nxe5 {[%clk
0:03:56.8]} 19... Nxe5 {[%clk 0:03:41]} 20. f4 {[%clk 0:03:56]} 20... c4+ {[%clk
0:03:39]} 21. Kh1 {[%clk 0:03:42.6]} 21... Ng6 {[%clk 0:03:30.2]} 22. Qg4 {[%clk
0:03:40.4]} 22... Kf7 {[%clk 0:03:29.5]} 23. h5 {[%clk 0:03:36.9]} 23... Ne7
{[%clk 0:03:18]} 24. Bh3 {[%clk 0:03:33.3]} 24... d4+ {[%clk 0:03:02.4]} 25. Kh2
{[%clk 0:03:28.1]} 25... Bd5 {[%clk 0:03:01.4]} 26. h6 {[%clk 0:03:23]} 26...
Rh8 {[%clk 0:02:59.1]} 27. Qh5+ {[%clk 0:03:21.6]} 27... Kf8 {[%clk 0:02:57.5]}
28. f5 {[%clk 0:03:15.7]} 28... e5 {[%clk 0:02:52.8]} 29. g4 {[%clk 0:03:10.5]}
29... Bf7 {[%clk 0:02:50.3]} 0-1

[Event "Live Chess"]
[Site "Chess.com"]
[Date "2024.06.02"]
[Round "-"]
[White "defenderalist"]
[Black "Pandreq"]
[Result "1-0"]
[WhiteElo "1534"]
[BlackElo "1219"]
[TimeControl "300"]
[EndTime "3:45:14 PDT"]
[Termination "defenderalist won on time"]

1. e4 {[%clk 0:04:58.8]} 1... Nf6 {[%clk 0:04:58.6]} 2. Nc3 {[%clk 0:04:56.7]}
2... Nc6 {[%clk 0:04:57.4]} 3. e5 {[%clk 0:04:52.6]} 3... Nxe5 {[%clk
0:04:55.5]} 4. Nf3 {[%clk 0:04:50.3]} 4... Ng6 {[%clk 0:04:46.3]} 5. Bd3 {[%clk
0:04:48.7]} 5... b6 {[%clk 0:04:40.8]} 6. Bxg6 {[%clk 0:04:47]} 6... hxg6 {[%clk
0:04:39.5]} 7. d4 {[%clk 0:04:45.8]} 7... Bb7 {[%clk 0:04:38.5]} 8. O-O {[%clk
0:04:43.2]} 8... e6 {[%clk 0:04:36.5]} 9. Ne5 {[%clk 0:04:41.4]} 9... d5 {[%clk
0:04:32.1]} 10. f4 {[%clk 0:04:38.5]} 10... Nd7 {[%clk 0:04:30.6]} 11. Qf3
{[%clk 0:04:01.7]} 11... f6 {[%clk 0:04:16.2]} 12. Nxg6 {[%clk 0:03:58.9]} 12...
Rh7 {[%clk 0:04:08.9]} 13. Nxf8 {[%clk 0:03:56.8]} 13... Nxf8 {[%clk 0:04:06.4]}
14. f5 {[%clk 0:03:56.5]} 14... Qd7 {[%clk 0:03:54.5]} 15. fxe6 {[%clk
0:03:54.5]} 15... Nxe6 {[%clk 0:03:53.4]} 16. a4 {[%clk 0:03:43.6]} 16... O-O-O
{[%clk 0:03:51.2]} 17. a5 {[%clk 0:03:41.3]} 17... Rdh8 {[%clk 0:03:48.3]} 18.
h3 {[%clk 0:03:37.6]} 18... Ng5 {[%clk 0:03:44.9]} 19. Bxg5 {[%clk 0:03:35.9]}
19... fxg5 {[%clk 0:03:44.4]} 20. axb6 {[%clk 0:03:29.9]} 20... axb6 {[%clk
0:03:40.6]} 21. Qf5 {[%clk 0:03:06.5]} 21... Qxf5 {[%clk 0:03:28.1]} 22. Rxf5
{[%clk 0:03:06.4]} 22... g4 {[%clk 0:03:11.3]} 23. Raf1 {[%clk 0:02:33.4]} 23...
gxh3 {[%clk 0:03:06.8]} 24. gxh3 {[%clk 0:02:32.3]} 24... Rxh3 {[%clk
0:03:03.2]} 25. Rf8+ {[%clk 0:02:30.9]} 25... Rxf8 {[%clk 0:03:02.2]} 26. Rxf8+
{[%clk 0:02:29.6]} 26... Kd7 {[%clk 0:02:57.6]} 27. Rf7+ {[%clk 0:02:24.7]}
27... Ke6 {[%clk 0:02:50.6]} 28. Rxg7 {[%clk 0:02:22.7]} 28... Ba6 {[%clk
0:02:31.5]} 29. Rxc7 {[%clk 0:02:14.5]} 29... Kd6 {[%clk 0:02:27.3]} 30. Rg7
{[%clk 0:02:06.2]} 30... Rh4 {[%clk 0:02:21.9]} 31. Rg6+ {[%clk 0:01:58.5]}
31... Kc7 {[%clk 0:02:20.4]} 32. Nxd5+ {[%clk 0:01:54.4]} 32... Kd7 {[%clk
0:02:09.3]} 33. c3 {[%clk 0:01:51.9]} 33... Bb7 {[%clk 0:02:02.3]} 34. Nxb6+
{[%clk 0:01:47.7]} 34... Kc7 {[%clk 0:02:00.8]} 35. Nc4 {[%clk 0:01:40.8]} 35...
Rh1+ {[%clk 0:01:58.2]} 36. Kf2 {[%clk 0:01:38.5]} 36... Rh2+ {[%clk 0:01:53.7]}
37. Ke3 {[%clk 0:01:32.1]} 37... Rh3+ {[%clk 0:01:50.3]} 38. Kd2 {[%clk
0:01:30.1]} 38... Rh2+ {[%clk 0:01:45.1]} 39. Kd3 {[%clk 0:01:27.9]} 39... Bd5
{[%clk 0:01:40.4]} 40. Nd2 {[%clk 0:01:17.6]} 40... Rh4 {[%clk 0:01:12.2]} 41.
Rg3 {[%clk 0:01:01.4]} 41... Bc6 {[%clk 0:01:03.7]} 42. b3 {[%clk 0:00:59.1]}
42... Bd7 {[%clk 0:00:59.5]} 43. c4 {[%clk 0:00:58]} 43... Bf5+ {[%clk
0:00:52.1]} 44. Kc3 {[%clk 0:00:55.7]} 44... Rh2 {[%clk 0:00:45.2]} 45. Nf3
{[%clk 0:00:52.3]} 45... Rc2+ {[%clk 0:00:42]} 46. Kb4 {[%clk 0:00:49.5]} 46...
Be4 {[%clk 0:00:32.9]} 47. Ne5 {[%clk 0:00:46]} 47... Bf5 {[%clk 0:00:19.8]} 48.
Rc3 {[%clk 0:00:38.1]} 48... Rh2 {[%clk 0:00:17]} 49. d5 {[%clk 0:00:36.4]}
49... Rh4 {[%clk 0:00:14.8]} 50. Nc6 {[%clk 0:00:33.8]} 50... Bd7 {[%clk
0:00:13]} 51. Na5 {[%clk 0:00:31.2]} 51... Rh6 {[%clk 0:00:09.8]} 52. Kc5 {[%clk
0:00:29.7]} 52... Rd6 {[%clk 0:00:04.4]} 53. b4 {[%clk 0:00:28.4]} 53... Rb6
{[%clk 0:00:02.4]} 54. Rg3 {[%clk 0:00:25.9]} 1-0

[Event "Live Chess"]
[Site "Chess.com"]
[Date "2024.06.02"]
[Round "-"]
[White "WeakOldFinished"]
[Black "Queensandpawns"]
[Result "1/2-1/2"]
[WhiteElo "2177"]
[BlackElo "2243"]
[TimeControl "300"]
[EndTime "3:45:42 PDT"]
[Termination "Game drawn by stalemate"]

1. e4 {[%clk 0:04:57.7]} 1... e5 {[%clk 0:04:59.5]} 2. Nf3 {[%clk 0:04:56.6]}
2... d5 {[%clk 0:04:59.4]} 3. Nxe5 {[%clk 0:04:52.8]} 3... dxe4 {[%clk
0:04:57.7]} 4. Bc4 {[%clk 0:04:48.5]} 4... Nh6 {[%clk 0:04:44]} 5. d4 {[%clk
0:04:45]} 5... Nd7 {[%clk 0:04:35.7]} 6. O-O {[%clk 0:04:20.6]} 6... Nxe5 {[%clk
0:04:33]} 7. dxe5 {[%clk 0:04:20.5]} 7... Qxd1 {[%clk 0:04:30.8]} 8. Rxd1 {[%clk
0:04:20.4]} 8... Nf5 {[%clk 0:04:30.7]} 9. Nc3 {[%clk 0:04:17]} 9... e3 {[%clk
0:04:24.2]} 10. Bxe3 {[%clk 0:04:15.4]} 10... Nxe3 {[%clk 0:04:23.4]} 11. fxe3
{[%clk 0:04:15.3]} 11... Bc5 {[%clk 0:04:23.3]} 12. Nd5 {[%clk 0:04:11.6]} 12...
Bb6 {[%clk 0:04:19.3]} 13. Nxb6 {[%clk 0:04:00.1]} 13... axb6 {[%clk 0:04:19.2]}
14. Rd4 {[%clk 0:03:49]} 14... Ke7 {[%clk 0:04:13.2]} 15. Rf4 {[%clk 0:03:44.2]}
15... Be6 {[%clk 0:04:11.5]} 16. Bxe6 {[%clk 0:03:35.8]} 16... Kxe6 {[%clk
0:04:11.4]} 17. a3 {[%clk 0:03:35]} 17... Ra5 {[%clk 0:04:09.6]} 18. Rc4 {[%clk
0:03:32.1]} 18... c6 {[%clk 0:04:09]} 19. Rb4 {[%clk 0:03:29.8]} 19... b5 {[%clk
0:04:02.4]} 20. c4 {[%clk 0:03:28.4]} 20... Kxe5 {[%clk 0:04:00.6]} 21. cxb5
{[%clk 0:03:26.8]} 21... Rxb5 {[%clk 0:04:00.5]} 22. Rxb5+ {[%clk 0:03:25.8]}
22... cxb5 {[%clk 0:04:00.4]} 23. Rc1 {[%clk 0:03:25.1]} 23... Kd6 {[%clk
0:03:57.8]} 24. Kf2 {[%clk 0:03:21.3]} 24... Re8 {[%clk 0:03:57]} 25. Kf3 {[%clk
0:03:20.2]} 25... Re6 {[%clk 0:03:50.5]} 26. Rd1+ {[%clk 0:03:15.5]} 26... Kc6
{[%clk 0:03:47.3]} 27. e4 {[%clk 0:03:11.2]} 27... Rf6+ {[%clk 0:03:27.7]} 28.
Ke3 {[%clk 0:03:09.8]} 28... Rh6 {[%clk 0:03:25.7]} 29. h3 {[%clk 0:03:08.8]}
29... Rd6 {[%clk 0:03:24.1]} 30. Rc1+ {[%clk 0:03:03.7]} 30... Kb6 {[%clk
0:03:23.6]} 31. Rf1 {[%clk 0:02:46.9]} 31... f6 {[%clk 0:03:19]} 32. Rf5 {[%clk
0:02:45.1]} 32... Rc6 {[%clk 0:03:17.1]} 33. Kd3 {[%clk 0:02:43.3]} 33... Rd6+
{[%clk 0:03:16.3]} 34. Ke3 {[%clk 0:02:42.3]} 34... Rc6 {[%clk 0:03:15.9]} 35.
Kd3 {[%clk 0:02:41.5]} 35... Rc1 {[%clk 0:03:14.4]} 36. Rf2 {[%clk 0:02:33.7]}
36... Rd1+ {[%clk 0:03:13.1]} 37. Kc3 {[%clk 0:02:31.8]} 37... Kc5 {[%clk
0:03:10.5]} 38. b4+ {[%clk 0:02:29.1]} 38... Kc6 {[%clk 0:03:09.8]} 39. Rf5
{[%clk 0:02:27.2]} 39... Rg1 {[%clk 0:03:07.9]} 40. Rf2 {[%clk 0:02:22.6]} 40...
Kd6 {[%clk 0:03:07.5]} 41. Rf5 {[%clk 0:02:18.7]} 41... Kc6 {[%clk 0:02:55.8]}
42. Rf2 {[%clk 0:02:17.2]} 42... Ra1 {[%clk 0:02:55]} 43. Kb2 {[%clk 0:02:15.1]}
43... Re1 {[%clk 0:02:54.2]} 44. Rc2+ {[%clk 0:02:08.2]} 44... Kb6 {[%clk
0:02:51.7]} 45. Rd2 {[%clk 0:02:03]} 45... Rxe4 {[%clk 0:02:48.6]} 46. Rd7
{[%clk 0:02:01.9]} 46... Re2+ {[%clk 0:02:48]} 47. Kc3 {[%clk 0:02:01.1]} 47...
Rxg2 {[%clk 0:02:47.5]} 48. h4 {[%clk 0:01:56.9]} 48... Kc6 {[%clk 0:02:46.7]}
49. Rf7 {[%clk 0:01:54.8]} 49... Rg3+ {[%clk 0:02:45.9]} 50. Kd4 {[%clk
0:01:54]} 50... Rg4+ {[%clk 0:02:44.5]} 51. Kc3 {[%clk 0:01:53.2]} 51... h5
{[%clk 0:02:40.8]} 52. Kd3 {[%clk 0:01:46.9]} 52... Rxh4 {[%clk 0:02:32.4]} 53.
Rxg7 {[%clk 0:01:45.7]} 53... Rh3+ {[%clk 0:02:32]} 54. Kd4 {[%clk 0:01:44.7]}
54... Rxa3 {[%clk 0:02:31.9]} 55. Rf7 {[%clk 0:01:42.7]} 55... Rf3 {[%clk
0:02:31]} 56. Ke4 {[%clk 0:01:41.6]} 56... Rf1 {[%clk 0:02:29.4]} 57. Rh7 {[%clk
0:01:40.1]} 57... Rh1 {[%clk 0:02:27.1]} 58. Rh6 {[%clk 0:01:38.7]} 58... Rh4+
{[%clk 0:02:25.6]} 59. Kd3 {[%clk 0:01:36.1]} 59... Rxb4 {[%clk 0:02:25.5]} 60.
Rxf6+ {[%clk 0:01:35]} 60... Kc7 {[%clk 0:02:23.8]} 61. Kc3 {[%clk 0:01:32.5]}
61... Rh4 {[%clk 0:02:22.7]} 62. Rh6 {[%clk 0:01:29.1]} 62... b6 {[%clk
0:02:17]} 63. Kb3 {[%clk 0:01:25.9]} 63... Kb7 {[%clk 0:02:16.6]} 64. Rh8 {[%clk
0:01:24.9]} 64... Ka6 {[%clk 0:02:15.8]} 65. Ra8+ {[%clk 0:01:17.6]} 65... Kb7
{[%clk 0:02:15.1]} 66. Rh8 {[%clk 0:01:17.5]} 66... b4 {[%clk 0:02:11.6]} 67.
Ka4 {[%clk 0:01:15.4]} 67... Kc6 {[%clk 0:02:09.6]} 68. Rh6+ {[%clk 0:01:14.2]}
68... Kc5 {[%clk 0:02:08.4]} 69. Rg6 {[%clk 0:01:05.5]} 69... Rg4 {[%clk
0:01:56.6]} 70. Rf6 {[%clk 0:00:59.1]} 70... h4 {[%clk 0:01:50.2]} 71. Rf5+
{[%clk 0:00:55.5]} 71... Kc4 {[%clk 0:01:49.7]} 72. Rf4+ {[%clk 0:00:49.4]}
72... Rxf4 {[%clk 0:01:47.9]} 1/2-1/2

[Event "Live Chess"]
[Site "Chess.com"]
[Date "2024.06.02"]
[Round "-"]
[White "StoreySniper"]
[Black "Purple1szed"]
[Result "1-0"]
[WhiteElo "2489"]
[BlackElo "2046"]
[TimeControl "300"]
[EndTime "3:45:49 PDT"]
[Termination "StoreySniper won by resignation"]

1. e4 {[%clk 0:04:57.4]} 1... e5 {[%clk 0:04:59.4]} 2. Nf3 {[%clk 0:04:55.7]}
2... Nc6 {[%clk 0:04:59.1]} 3. Bb5 {[%clk 0:04:54.6]} 3... g6 {[%clk 0:04:58.6]}
4. O-O {[%clk 0:04:53.2]} 4... Bg7 {[%clk 0:04:58]} 5. c3 {[%clk 0:04:52.2]}
5... a6 {[%clk 0:04:57.7]} 6. Ba4 {[%clk 0:04:50.9]} 6... b5 {[%clk 0:04:57.4]}
7. Bb3 {[%clk 0:04:49.1]} 7... Na5 {[%clk 0:04:57]} 8. Bc2 {[%clk 0:04:48]} 8...
c5 {[%clk 0:04:56.7]} 9. d4 {[%clk 0:04:46]} 9... cxd4 {[%clk 0:04:53.6]} 10.
cxd4 {[%clk 0:04:45]} 10... exd4 {[%clk 0:04:53.5]} 11. Nxd4 {[%clk 0:04:43.1]}
11... Ne7 {[%clk 0:04:48.4]} 12. Nc3 {[%clk 0:04:36.5]} 12... Bb7 {[%clk
0:04:46.8]} 13. Re1 {[%clk 0:04:26.6]} 13... O-O {[%clk 0:04:45.8]} 14. Bg5
{[%clk 0:04:24.8]} 14... h6 {[%clk 0:04:43.9]} 15. Bh4 {[%clk 0:04:23.9]} 15...
g5 {[%clk 0:04:42.9]} 16. Bg3 {[%clk 0:04:21.8]} 16... Rc8 {[%clk 0:04:39.5]}
17. e5 {[%clk 0:04:12.8]} 17... Nec6 {[%clk 0:04:30.3]} 18. Nf5 {[%clk
0:04:08.6]} 18... Nc4 {[%clk 0:04:23]} 19. Nxh6+ {[%clk 0:03:41.1]} 19... Bxh6
{[%clk 0:04:14.6]} 20. Qd3 {[%clk 0:03:40.1]} 20... f5 {[%clk 0:04:13.9]} 21.
exf6 {[%clk 0:03:35.9]} 21... Rf7 {[%clk 0:04:10.6]} 22. Qg6+ {[%clk 0:03:33.3]}
22... Bg7 {[%clk 0:04:10]} 23. Qh7+ {[%clk 0:03:26.1]} 23... Kf8 {[%clk
0:04:06.9]} 24. fxg7+ {[%clk 0:03:25.1]} 24... Rxg7 {[%clk 0:04:06.8]} 25. Qh8+
{[%clk 0:03:18.8]} 25... Kf7 {[%clk 0:03:57.4]} 26. Qh5+ {[%clk 0:03:13.6]}
26... Kg8 {[%clk 0:03:53.6]} 27. b3 {[%clk 0:03:02.1]} 27... Nb6 {[%clk
0:03:27.2]} 28. Bd6 {[%clk 0:02:36.1]} 28... Nd4 {[%clk 0:03:05.2]} 29. Bg6
{[%clk 0:02:27.9]} 29... Ne6 {[%clk 0:03:00.6]} 30. Be5 {[%clk 0:02:20.7]} 30...
Qe7 {[%clk 0:02:49.4]} 31. Bxg7 {[%clk 0:02:16.7]} 31... Qxg7 {[%clk 0:02:49.3]}
32. Ne4 {[%clk 0:02:07.8]} 32... Nf4 {[%clk 0:02:41.4]} 33. Qxg5 {[%clk
0:01:56.6]} 33... Nxg6 {[%clk 0:02:28.8]} 34. Nf6+ {[%clk 0:01:45.2]} 34... Kf7
{[%clk 0:02:23.2]} 35. Nh5 {[%clk 0:01:43.6]} 35... Qh8 {[%clk 0:01:45.6]} 36.
Qf5+ {[%clk 0:01:38.3]} 1-0

[Event "Live Chess"]
[Site "Chess.com"]
[Date "2024.06.02"]
[Round "-"]
[White "Ziipyyy"]
[Black "booktrunk"]
[Result "0-1"]
[WhiteElo "1290"]
[BlackElo "1501"]
[TimeControl "300"]
[EndTime "3:45:51 PDT"]
[Termination "booktrunk won on time"]

1. e4 {[%clk 0:04:59.1]} 1... b6 {[%clk 0:04:50.6]} 2. Nc3 {[%clk 0:04:57.8]}
2... h6 {[%clk 0:04:41.6]} 3. Bc4 {[%clk 0:04:53.7]} 3... e6 {[%clk 0:04:38.3]}
4. f4 {[%clk 0:04:50]} 4... Bb7 {[%clk 0:04:33.5]} 5. d3 {[%clk 0:04:47.7]} 5...
f5 {[%clk 0:04:30.9]} 6. Qh5+ {[%clk 0:04:37.2]} 6... Ke7 {[%clk 0:04:26.1]} 7.
exf5 {[%clk 0:04:20.6]} 7... Qe8 {[%clk 0:04:25]} 8. Qxe8+ {[%clk 0:04:15.4]}
8... Kxe8 {[%clk 0:04:23.3]} 9. Nf3 {[%clk 0:04:11.6]} 9... exf5 {[%clk
0:04:21.1]} 10. O-O {[%clk 0:04:09.7]} 10... Nf6 {[%clk 0:04:15.1]} 11. Bd2
{[%clk 0:04:07.9]} 11... Bc5+ {[%clk 0:04:10.6]} 12. Kh1 {[%clk 0:04:04.6]}
12... Ng4 {[%clk 0:04:09.5]} 13. Rae1+ {[%clk 0:04:02.6]} 13... Kd8 {[%clk
0:04:07.1]} 14. d4 {[%clk 0:03:57.9]} 14... Bxf3 {[%clk 0:03:58.6]} 15. Rxf3
{[%clk 0:03:54.5]} 15... Bxd4 {[%clk 0:03:56.2]} 16. Bd5 {[%clk 0:03:21.6]}
16... c6 {[%clk 0:03:52.6]} 17. Bf7 {[%clk 0:03:07.9]} 17... Nf2+ {[%clk
0:03:49.9]} 18. Rxf2 {[%clk 0:03:05.3]} 18... Bxf2 {[%clk 0:03:47.4]} 19. Re2
{[%clk 0:03:03.5]} 19... Bc5 {[%clk 0:03:44.1]} 20. a3 {[%clk 0:02:41.8]} 20...
Rf8 {[%clk 0:03:41.9]} 21. Bh5 {[%clk 0:02:36.2]} 21... Bd6 {[%clk 0:03:37.4]}
22. g3 {[%clk 0:02:12.6]} 22... Kc7 {[%clk 0:03:35.3]} 23. Bf3 {[%clk
0:01:55.8]} 23... Na6 {[%clk 0:03:31.3]} 24. b4 {[%clk 0:01:45.1]} 24... Rae8
{[%clk 0:03:28.4]} 25. Rxe8 {[%clk 0:01:39.6]} 25... Rxe8 {[%clk 0:03:26.1]} 26.
Nd1 {[%clk 0:01:33.1]} 26... Nb8 {[%clk 0:03:09.3]} 27. Ne3 {[%clk 0:01:30.2]}
27... Bf8 {[%clk 0:03:06.6]} 28. Nxf5 {[%clk 0:01:25]} 28... g6 {[%clk
0:03:02.1]} 29. Nd4 {[%clk 0:01:09.9]} 29... c5 {[%clk 0:03:00.8]} 30. Nb5+
{[%clk 0:01:04.6]} 30... Kd8 {[%clk 0:02:58.4]} 31. Bc3 {[%clk 0:00:56.4]} 31...
cxb4 {[%clk 0:02:56.7]} 32. Bf6+ {[%clk 0:00:54.3]} 32... Be7 {[%clk 0:02:47.8]}
33. Bxe7+ {[%clk 0:00:51.7]} 33... Rxe7 {[%clk 0:02:46.1]} 34. axb4 {[%clk
0:00:46]} 34... a6 {[%clk 0:02:44.2]} 35. Nd6 {[%clk 0:00:42.3]} 35... Re6
{[%clk 0:02:38.3]} 36. Nf7+ {[%clk 0:00:32.2]} 36... Ke7 {[%clk 0:02:34.4]} 37.
Nxh6 {[%clk 0:00:30]} 37... Re1+ {[%clk 0:02:32]} 38. Kg2 {[%clk 0:00:28.8]}
38... Rb1 {[%clk 0:02:30]} 39. c3 {[%clk 0:00:19.5]} 39... Rb2+ {[%clk
0:02:28.4]} 40. Kh3 {[%clk 0:00:18.3]} 40... Rc2 {[%clk 0:02:26.6]} 0-1

[Event "Live Chess"]
[Site "Chess.com"]
[Date "2024.06.02"]
[Round "-"]
[White "BishopofWells"]
[Black "dmitro74"]
[Result "0-1"]
[WhiteElo "1542"]
[BlackElo "1730"]
[TimeControl "300"]
[EndTime "3:46:10 PDT"]
[Termination "dmitro74 won by resignation"]

1. d4 {[%clk 0:04:53.8]} 1... e6 {[%clk 0:04:58.7]} 2. c4 {[%clk 0:04:52.6]}
2... d5 {[%clk 0:04:57.5]} 3. Nc3 {[%clk 0:04:51.6]} 3... Nf6 {[%clk 0:04:56.1]}
4. Bg5 {[%clk 0:04:50.4]} 4... Be7 {[%clk 0:04:54.9]} 5. Nf3 {[%clk 0:04:49.4]}
5... h6 {[%clk 0:04:52.2]} 6. Bh4 {[%clk 0:04:47.3]} 6... O-O {[%clk 0:04:47.4]}
7. h3 {[%clk 0:04:45.6]} 7... Nbd7 {[%clk 0:04:45.4]} 8. e3 {[%clk 0:04:44.7]}
8... b6 {[%clk 0:04:43.9]} 9. Bd3 {[%clk 0:04:43.1]} 9... Bb7 {[%clk 0:04:40.7]}
10. O-O {[%clk 0:04:41]} 10... c5 {[%clk 0:04:36.8]} 11. dxc5 {[%clk 0:04:33.1]}
11... Nxc5 {[%clk 0:04:32]} 12. cxd5 {[%clk 0:04:25.6]} 12... Nxd5 {[%clk
0:04:25.9]} 13. Bxe7 {[%clk 0:04:21.2]} 13... Qxe7 {[%clk 0:04:24.3]} 14. Nxd5
{[%clk 0:04:15.2]} 14... Bxd5 {[%clk 0:04:22.5]} 15. Bc2 {[%clk 0:04:12.6]}
15... Rfd8 {[%clk 0:04:19]} 16. Qe2 {[%clk 0:04:08.4]} 16... Ne4 {[%clk
0:04:06.8]} 17. Nh2 {[%clk 0:03:59.9]} 17... Qg5 {[%clk 0:03:54.8]} 18. f3
{[%clk 0:03:51.7]} 18... Ng3 {[%clk 0:03:51.7]} 19. Qd3 {[%clk 0:03:47.1]} 19...
Be4 {[%clk 0:03:41]} 20. fxe4 {[%clk 0:03:33.6]} 20... Rxd3 {[%clk 0:03:36.5]}
21. Rf3 {[%clk 0:03:24.2]} 21... Rd2 {[%clk 0:03:25]} 22. Bb3 {[%clk 0:03:07.6]}
22... Nxe4 {[%clk 0:03:21.2]} 23. g4 {[%clk 0:03:00.8]} 23... Rad8 {[%clk
0:03:09.4]} 24. Raf1 {[%clk 0:02:58.3]} 24... Nf6 {[%clk 0:03:01.8]} 25. e4
{[%clk 0:02:54.6]} 25... e5 {[%clk 0:02:56.1]} 26. Rc1 {[%clk 0:02:45.5]} 26...
Rxh2 {[%clk 0:02:43.6]} 27. Kxh2 {[%clk 0:02:43.3]} 27... Qxc1 {[%clk
0:02:41.9]} 0-1

[Event "Live Chess"]
[Site "Chess.com"]
[Date "2024.06.02"]
[Round "-"]
[White "Andriy_Yaremovych"]
[Black "JanMur7"]
[Result "0-1"]
[WhiteElo "1588"]
[BlackElo "2298"]
[TimeControl "300"]
[EndTime "3:46:16 PDT"]
[Termination "JanMur7 won by resignation"]

1. e4 {[%clk 0:04:57.6]} 1... g6 {[%clk 0:04:58.3]} 2. Nc3 {[%clk 0:04:57.5]}
2... Bg7 {[%clk 0:04:57.6]} 3. f4 {[%clk 0:04:56.7]} 3... c5 {[%clk 0:04:57]} 4.
Nf3 {[%clk 0:04:55.9]} 4... Nc6 {[%clk 0:04:56.5]} 5. b3 {[%clk 0:04:55.2]} 5...
e6 {[%clk 0:04:55.9]} 6. Bb2 {[%clk 0:04:54.5]} 6... Nge7 {[%clk 0:04:55.5]} 7.
Qe2 {[%clk 0:04:53.8]} 7... O-O {[%clk 0:04:54.5]} 8. g4 {[%clk 0:04:52.9]} 8...
f5 {[%clk 0:04:48.4]} 9. gxf5 {[%clk 0:04:51]} 9... exf5 {[%clk 0:04:47.3]} 10.
e5 {[%clk 0:04:49.8]} 10... d6 {[%clk 0:04:45.4]} 11. O-O-O {[%clk 0:04:48.1]}
11... dxe5 {[%clk 0:04:41.7]} 12. Nxe5 {[%clk 0:04:48]} 12... Nd5 {[%clk
0:04:36.8]} 13. Nxd5 {[%clk 0:04:46.1]} 13... Qxd5 {[%clk 0:04:34.1]} 14. Bg2
{[%clk 0:04:45.1]} 14... Qd6 {[%clk 0:04:30.3]} 15. Nxc6 {[%clk 0:04:39.1]}
15... Bxb2+ {[%clk 0:04:27.4]} 16. Kxb2 {[%clk 0:04:37.9]} 16... bxc6 {[%clk
0:04:26.6]} 17. Rhg1 {[%clk 0:04:33]} 17... a5 {[%clk 0:04:19.8]} 18. h4 {[%clk
0:04:31.8]} 18... a4 {[%clk 0:04:17.3]} 19. h5 {[%clk 0:04:29.2]} 19... a3+
{[%clk 0:04:16.4]} 20. Kb1 {[%clk 0:04:26.9]} 20... Ba6 {[%clk 0:04:09.4]} 21.
Qf3 {[%clk 0:04:23.1]} 21... Qd4 {[%clk 0:04:03.6]} 22. Qc3 {[%clk 0:04:17.3]}
22... Qxc3 {[%clk 0:03:57.9]} 23. dxc3 {[%clk 0:04:17.2]} 23... Rad8 {[%clk
0:03:51.6]} 24. Bxc6 {[%clk 0:04:15]} 24... Kg7 {[%clk 0:03:50.2]} 25. c4 {[%clk
0:04:12.7]} 25... Rxd1+ {[%clk 0:03:33.4]} 26. Rxd1 {[%clk 0:04:12.6]} 26... Rf6
{[%clk 0:03:30.9]} 27. Bf3 {[%clk 0:04:09.9]} 27... Re6 {[%clk 0:03:27.3]} 28.
hxg6 {[%clk 0:04:06.4]} 28... hxg6 {[%clk 0:03:25.4]} 29. Kc1 {[%clk 0:04:05.2]}
29... Re3 {[%clk 0:03:21.7]} 30. Bd5 {[%clk 0:04:03.5]} 30... Re2 {[%clk
0:03:18.6]} 31. Rg1 {[%clk 0:03:57.7]} 31... Rf2 {[%clk 0:03:15.3]} 32. Bc6
{[%clk 0:03:50.1]} 32... Rxf4 {[%clk 0:03:09.3]} 33. Be8 {[%clk 0:03:48.6]}
33... Rg4 {[%clk 0:03:08.4]} 34. Rf1 {[%clk 0:03:46.6]} 34... Bb7 {[%clk
0:02:58.6]} 35. Bd7 {[%clk 0:03:43]} 35... Kf6 {[%clk 0:02:50.3]} 36. Re1 {[%clk
0:03:34.9]} 36... Be4 {[%clk 0:02:48.6]} 37. Kd2 {[%clk 0:03:32.1]} 37... Rg2+
{[%clk 0:02:47.6]} 38. Re2 {[%clk 0:03:27.3]} 38... Rxe2+ {[%clk 0:02:46]} 39.
Kxe2 {[%clk 0:03:25.8]} 39... Bxc2 {[%clk 0:02:45.9]} 40. Ba4 {[%clk 0:03:22.2]}
40... Bb1 {[%clk 0:02:44.2]} 41. b4 {[%clk 0:03:21.4]} 41... Bxa2 {[%clk
0:02:43.3]} 42. bxc5 {[%clk 0:03:20.1]} 42... Bxc4+ {[%clk 0:02:42]} 43. Ke3
{[%clk 0:03:19.2]} 43... a2 {[%clk 0:02:41.6]} 0-1